fUST/lending_fUST_20240621
["ID","MTS","AMOUNT","RATE_DAILY","PERIOD"]
[330022566,1718945448651,-151.0,0.00054876,120]
[330022567,1718945448662,-500.0,0.00054876,120]
[330022568,1718945448672,-500.0,0.00054876,120]
[330022569,1718945448681,-504.00849276,0.00054876,120]
[330022570,1718945448691,-2879.13,0.00054876,120]
[330022571,1718945448700,-500.0,0.00054876,120]
[330022572,1718945448710,-500.0,0.00054876,120]
[330022573,1718945448719,-500.0,0.00054876,120]
[330022574,1718945448728,-1641.54,0.00054876,120]
[330022575,1718945448738,-500.03,0.00054876,120]
[330022576,1718945448748,-566.1,0.00054876,120]
[330022577,1718945448759,-500.0,0.00054876,120]
[330022578,1718945448769,-500.0,0.00054876,120]
[330022579,1718945448780,-501.21829726,0.00054876,120]
[330022580,1718945448790,-500.0,0.00054876,60]
[330022581,1718945448799,-1573.84,0.00054876,120]
[330022582,1718945448810,-1781.32,0.00054876,120]
[330022583,1718945448819,-500.0,0.00054876,120]
[330022584,1718945448829,-151.0,0.00054876,120]
[330022585,1718945448839,-500.0,0.00054876,120]
[330022586,1718945448848,-288.04277748,0.00054876,120]
[330022587,1718945448857,-500.0,0.00054876,120]
[330022588,1718945448867,-500.0,0.00054876,120]
[330022589,1718945448881,-588.19,0.00054876,120]
[330022590,1718945448890,-869.94,0.00054876,120]
[330022591,1718945448900,-668.98,0.00054876,120]
[330022592,1718945448909,-6744.43,0.00054876,120]
[330022593,1718945448923,-15912.75,0.00054876,120]
[330022594,1718945448932,-500.0,0.00054876,120]
[330022595,1718945448941,-1303.48,0.00054876,120]
[330022596,1718945448951,-500.0,0.00054876,120]
[330022597,1718945448960,-500.0,0.00054876,120]
[330022598,1718945448970,-42487.41474447,0.00054876,120]
[330022599,1718946350101,-197.31490802,0.00020996,2]
[330022600,1718946430186,-2095.32074542,0.00020996,2]
[330022601,1718946430205,-164.09213231,0.00020996,2]
[330022602,1718946430226,-166.2,0.00021096,2]
[330022603,1718946430247,-185.3363719,0.00021096,2]
[330022604,1718946430267,-622.07618405,0.00028374,2]
[330022605,1718946430287,-169.3014033,0.000404,2]
[330022606,1718946430309,-2097.67316302,0.00044866,2]
[330022607,1718946432096,-156.0,0.00044866,2]
[330022608,1718946435085,-1032.86955962,0.00044866,2]
[330022609,1718946435130,-1032.86955962,0.00044866,2]
[330022610,1718946546135,-154.76012181,0.00025448,2]
[330022611,1718946546155,-1039.81144648,0.0004,2]
[330022612,1718946546176,-173.05240663,0.00042766,2]
[330022613,1718946546196,-724.72679,0.00043094,2]
[330022614,1718946546216,-173.05240663,0.00047766,2]
[330022615,1718946546237,-5000.0,0.00048,4]
[330022637,1718946632266,-1386.15759324,0.0005,4]
[330022638,1718946632277,-113.84240676,0.0005,4]
[330022639,1718946632287,-166.2,0.00050068,2]
[330022640,1718946632298,-633.9913807,0.00050999,4]
[330022641,1718946632309,-4502.67730834,0.00050999,4]
[330022642,1718946632318,-153.0,0.00052007,30]
[330022643,1718946632328,-173.05240663,0.00052766,2]
[330022644,1718946632340,-600.0,0.00054,120]
[330022645,1718946632349,-600.0,0.00054,120]
[330022646,1718946632358,-5004.14137893,0.00054,120]
[330022647,1718946632367,-600.0,0.00054,120]
[330022648,1718946632376,-789.881,0.00054175,2]
[330022649,1718946632385,-8258.195999,0.000543,120]
[330022650,1718946632394,-167.71249953,0.00054338,4]
[330022651,1718946632403,-1140.94783705,0.00054339,28]
[330022652,1718946632412,-2000.0,0.00054382,120]
[330022653,1718946632421,-153.0,0.0005463,2]
[330022654,1718946632430,-153.0,0.0005463,2]
[330022655,1718946632440,-153.0,0.0005463,2]
[330022656,1718946632449,-5253.9204863,0.00054669,120]
[330022657,1718946632458,-271.06252242,0.00054699,120]
[330022658,1718946632468,-10000.0,0.000547,30]
[330022659,1718946632477,-1523.47,0.00054784,3]
[330022660,1718946632486,-1556.2,0.00054784,3]
[330022661,1718946632500,-2429.75,0.00054784,3]
[330022662,1718946632508,-500.0,0.00054793,20]
[330022663,1718946632517,-611.24,0.00054793,30]
[330022664,1718946632526,-500.0,0.00054793,120]
[330022665,1718946632536,-500.0,0.00054793,120]
[330022666,1718946632544,-500.0,0.00054793,120]
[330022667,1718946632553,-500.0,0.00054793,120]
[330022668,1718946632562,-500.0,0.00054793,120]
[330022669,1718946632571,-504.08113203,0.00054794,120]
[330022670,1718946632582,-504.90575669,0.00054794,120]
[330022671,1718946632594,-500.0,0.00054794,120]
[330022672,1718946632603,-502.49385359,0.00054794,120]
[330022673,1718946632612,-500.0,0.00054794,120]
[330022674,1718946632622,-500.0,0.00054794,120]
[330022675,1718946632631,-507.22726176,0.00054794,120]
[330022676,1718946632640,-500.0,0.00054794,120]
[330022677,1718946632649,-500.0,0.00054794,120]
[330022678,1718946632658,-507.42764687,0.00054794,120]
[330022679,1718946632668,-209.15030668,0.00054794,120]
[330022680,1718946632677,-519.44760531,0.00054794,120]
[330022681,1718946632686,-506.65411895,0.00054794,120]
[330022682,1718946632696,-500.0,0.00054794,120]
[330022684,1718946632704,-500.0,0.00054794,120]
[330022686,1718946632714,-500.0,0.00054794,120]
[330022688,1718946632724,-1551.88,0.00054794,120]
[330022690,1718946632733,-500.0,0.00054794,120]
[330022692,1718946632742,-500.0,0.00054794,120]
[330022694,1718946632751,-500.0,0.00054794,120]
[330022695,1718946632760,-500.0,0.00054794,120]
[330022697,1718946632769,-500.0,0.00054794,120]
[330022700,1718946632779,-412.5322674,0.00054794,120]
[330022701,1718946632788,-500.0,0.00054794,120]
[330022702,1718946632797,-500.0,0.00054794,120]
[330022703,1718946632806,-500.0,0.00054794,120]
[330022704,1718946632815,-500.0,0.00054794,120]
[330022706,1718946632825,-474.87524319,0.00054794,120]
[330023076,1718946638136,-2024.79,0.00054784,3]
[330023077,1718946638146,-25.12475681,0.00054794,120]
[330023078,1718946638156,-500.0,0.00054794,120]
[330023079,1718946638165,-504.45857572,0.00054794,120]
[330023080,1718946638175,-500.0,0.00054794,120]
[330023081,1718946638185,-2619.8,0.00054794,120]
[330023082,1718946638194,-500.0,0.00054794,120]
[330023083,1718946638204,-500.0,0.00054794,120]
[330023084,1718946638306,-500.0,0.00054794,120]
[330023085,1718946638316,-500.0,0.00054794,120]
[330023086,1718946638326,-615.56,0.00054794,120]
[330023087,1718946638336,-500.0,0.00054794,120]
[330023088,1718946638350,-500.0,0.00054794,120]
[330023089,1718946638360,-500.0,0.00054794,30]
[330023090,1718946638369,-500.0,0.00054794,120]
[330023091,1718946638379,-500.0,0.00054794,120]
[330023092,1718946638390,-516.04690645,0.00054794,120]
[330023093,1718946638400,-500.0,0.00054794,120]
[330023094,1718946638409,-502.78904314,0.00054794,30]
[330023095,1718946638418,-500.0,0.00054794,120]
[330023096,1718946638428,-363.79476119,0.00054794,120]
[330023097,1718946638438,-201.75035918,0.00054794,120]
[330023098,1718946638460,-1065.85964082,0.00054794,120]
[330023099,1718946638469,-511.30748835,0.00054794,120]
[330023100,1718946638479,-500.0,0.00054794,120]
[330023101,1718946638488,-611.67,0.00054794,120]
[330023102,1718946638503,-500.0,0.00054794,120]
[330023103,1718946638513,-595.08069586,0.00054794,120]
[330023104,1718946638522,-500.0,0.00054794,120]
[330023105,1718946638531,-266.49800013,0.00054794,120]
[330023106,1718946638543,-500.0,0.00054794,120]
[330023107,1718946638552,-500.0,0.00054794,120]
[330023108,1718946638562,-500.0,0.00054794,120]
[330023109,1718946638572,-902.15,0.00054794,120]
[330023110,1718946638582,-500.0,0.00054794,120]
[330023111,1718946638593,-500.0,0.00054794,120]
[330023112,1718946638603,-588.01,0.00054794,120]
[330023113,1718946638612,-500.0,0.00054794,120]
[330023114,1718946638622,-508.56104522,0.00054794,120]
[330023116,1718946638631,-500.0,0.00054794,120]
[330023118,1718946638641,-500.0,0.00054794,120]
[330023119,1718946638651,-500.0,0.00054794,120]
[330023122,1718946638660,-500.0,0.00054794,120]
[330023123,1718946638670,-500.0,0.00054794,120]
[330023125,1718946638679,-526.61,0.00054794,120]
[330023127,1718946638689,-526.61,0.00054794,120]
[330023129,1718946638698,-526.61,0.00054794,120]
[330023131,1718946638709,-500.0,0.00054794,120]
[330023133,1718946638718,-526.61,0.00054794,120]
[330023135,1718946638728,-526.61,0.00054794,120]
[330023137,1718946638737,-526.61,0.00054794,120]
[330023139,1718946638746,-526.61,0.00054794,120]
[330023141,1718946638756,-500.0,0.00054794,120]
[330023143,1718946638765,-526.61,0.00054794,120]
[330023145,1718946638774,-526.61,0.00054794,120]
[330023147,1718946638784,-526.61,0.00054794,120]
[330023149,1718946638793,-526.61,0.00054794,120]
[330023151,1718946638803,-526.61,0.00054794,120]
[330023153,1718946638812,-500.0,0.00054794,120]
[330023155,1718946638822,-526.61,0.00054794,120]
[330023157,1718946638832,-500.0,0.00054794,120]
[330023159,1718946638844,-500.0,0.00054794,120]
[330023161,1718946638853,-500.0,0.00054794,120]
[330023163,1718946638863,-500.0,0.00054794,120]
[330023164,1718946638873,-548.22593488,0.00054794,120]
[330023166,1718946638882,-617.55,0.00054794,120]
[330023168,1718946638892,-352.87870872,0.00054794,120]
[330023169,1718946638906,-147.12129128,0.00054794,120]
[330023170,1718946638916,-1097.3,0.00054794,120]
[330023171,1718946638925,-500.0,0.00054794,120]
[330023172,1718946638936,-599.19,0.00054794,120]
[330023173,1718946638945,-500.0,0.00054794,120]
[330023174,1718946638954,-640.92,0.00054794,120]
[330023175,1718946638964,-1197.05,0.00054794,120]
[330023176,1718946638973,-500.0,0.00054794,120]
[330023177,1718946638983,-670.75,0.00054794,120]
[330023178,1718946638992,-500.0,0.00054794,120]
[330023179,1718946639001,-505.00040707,0.00054794,120]
[330023180,1718946639011,-500.0,0.00054794,120]
[330023181,1718946639020,-500.0,0.00054794,120]
[330023182,1718946639030,-762.89,0.00054794,120]
[330023183,1718946639040,-500.0,0.00054794,120]
[330023184,1718946639050,-1340.55,0.00054794,120]
[330023185,1718946639060,-1930.1,0.00054794,120]
[330023186,1718946639070,-2279.93,0.00054794,120]
[330023187,1718946639080,-500.0,0.00054794,20]
[330023188,1718946639091,-500.0,0.00054794,120]
[330023189,1718946639102,-500.0,0.00054794,120]
[330023190,1718946639112,-500.0,0.00054794,120]
[330023191,1718946639122,-400.27161015,0.00054794,120]
[330023192,1718946639132,-500.0,0.00054794,120]
[330023193,1718946639142,-1294.55,0.00054794,120]
[330023194,1718946639152,-500.0,0.00054794,2]
[330023195,1718946639162,-500.0,0.00054794,120]
[330023196,1718946639171,-504.12202885,0.00054794,120]
[330023197,1718946639181,-1000.0,0.00054794,120]
[330023198,1718946639190,-500.0,0.00054794,120]
[330023199,1718946639200,-500.0,0.00054794,120]
[330023200,1718946639209,-500.0,0.00054794,120]
[330023201,1718946639219,-201.80258211,0.00054794,7]
[330023202,1718946639228,-748.78,0.00054794,120]
[330023203,1718946639238,-500.0,0.00054794,120]
[330023204,1718946639248,-500.0,0.00054794,7]
[330023205,1718946639258,-500.0,0.00054794,120]
[330023206,1718946639268,-552.88409631,0.00054794,120]
[330023207,1718946639279,-501.55239601,0.00054794,120]
[330023208,1718946639289,-500.0,0.00054794,120]
[330023209,1718946639299,-504.32063269,0.00054794,120]
[330023210,1718946639309,-835.7,0.00054794,120]
[330023211,1718946639319,-346.75449246,0.00054794,120]
[330023212,1718946639328,-500.0,0.00054794,120]
[330023213,1718946639338,-500.0,0.00054794,120]
[330023214,1718946639352,-507.29650309,0.00054794,120]
[330023215,1718946639362,-500.0,0.00054794,120]
[330023216,1718946639372,-500.0,0.00054794,120]
[330023217,1718946639381,-2000.0,0.00054794,5]
[330023218,1718946639392,-500.0,0.00054794,120]
[330023219,1718946639402,-500.0,0.00054794,120]
[330023220,1718946639411,-500.0,0.00054794,120]
[330023221,1718946639421,-910.95,0.00054794,120]
[330023222,1718946639430,-500.0,0.00054794,120]
[330023223,1718946639440,-500.0,0.00054794,120]
[330023224,1718946639449,-464.1985087,0.00054794,120]
[330023225,1718946639459,-500.0,0.00054794,120]
[330023226,1718946639468,-500.0,0.00054794,120]
[330023227,1718946639477,-500.0,0.00054794,120]
[330023228,1718946639487,-500.0,0.00054794,2]
[330023229,1718946639497,-500.0,0.00054794,120]
[330023230,1718946639511,-521.62219814,0.00054794,2]
[330023231,1718946639520,-543.74,0.00054794,120]
[330023232,1718946639529,-504.81003501,0.00054794,120]
[330023233,1718946639539,-2269.48,0.00054794,120]
[330023234,1718946639549,-500.0,0.00054794,120]
[330023235,1718946639559,-500.0,0.00054794,2]
[330023236,1718946639568,-193.61467276,0.00054794,120]
[330023237,1718946639578,-502.91498116,0.00054794,120]
[330023238,1718946639590,-500.0,0.00054794,120]
[330023239,1718946639602,-500.0,0.00054794,7]
[330023240,1718946639612,-1504.74,0.00054794,120]
[330023241,1718946639622,-500.0,0.00054794,120]
[330023242,1718946639632,-5631.83,0.00054794,120]
[330023243,1718946639641,-500.0,0.00054794,120]
[330023244,1718946639651,-546.02,0.00054794,120]
[330023245,1718946639662,-502.16440813,0.00054794,120]
[330023246,1718946639672,-500.0,0.00054794,120]
[330023247,1718946639681,-500.0,0.00054794,120]
[330023248,1718946639691,-524.54766491,0.00054794,120]
[330023249,1718946639700,-500.0,0.00054794,120]
[330023251,1718946639710,-2639.21,0.00054794,120]
[330023252,1718946639719,-500.0,0.00054794,120]
[330023253,1718946639729,-1632.87,0.00054794,120]
[330023254,1718946639739,-500.0,0.00054794,120]
[330023255,1718946639749,-507.85582342,0.00054794,120]
[330023256,1718946639759,-500.0,0.00054794,120]
[330023257,1718946639769,-500.0,0.00054794,120]
[330023258,1718946639779,-1567.2,0.00054794,120]
[330023259,1718946639789,-39698.35,0.00054794,120]
[330023260,1718946639800,-587.17,0.00054794,120]
[330023261,1718946639809,-500.0,0.00054794,120]
[330023262,1718946639819,-1194.85,0.00054794,120]
[330023263,1718946639829,-281.01145768,0.00054794,120]
[330023264,1718946639843,-797.45,0.00054794,120]
[330023265,1718946639853,-500.0,0.00054794,120]
[330023266,1718946639863,-500.0,0.00054794,120]
[330023267,1718946639874,-520.78600603,0.00054794,120]
[330023268,1718946639884,-500.0,0.00054794,120]
[330023269,1718946639895,-1920.84,0.00054794,120]
[330023270,1718946639905,-14586.68,0.00054794,120]
[330023271,1718946639914,-500.0,0.00054794,120]
[330023272,1718946639925,-613.23,0.00054794,120]
[330023273,1718946639934,-500.0,0.00054794,120]
[330023274,1718946639944,-500.0,0.00054794,120]
[330023275,1718946639953,-500.0,0.00054794,120]
[330023276,1718946639964,-1039.94,0.00054794,120]
[330023277,1718946639975,-1508.26,0.00054794,120]
[330023278,1718946639985,-500.0,0.00054794,120]
[330023279,1718946639994,-500.0,0.00054794,120]
[330023280,1718946640005,-500.0,0.00054794,120]
[330023282,1718946640015,-500.0,0.00054794,120]
[330023283,1718946640025,-500.0,0.00054794,120]
[330023284,1718946640034,-500.0,0.00054794,120]
[330023285,1718946640044,-568.059065,0.00054794,120]
[330023286,1718946640054,-4463.87,0.00054794,21]
[330023287,1718946640064,-500.0,0.00054794,120]
[330023288,1718946640074,-6182.39,0.00054794,120]
[330023289,1718946640083,-501.19407016,0.00054794,120]
[330023290,1718946640098,-500.0,0.00054794,120]
[330023291,1718946640107,-1821.31,0.00054794,120]
[330023292,1718946640118,-508.60580619,0.00054794,120]
[330023293,1718946640128,-500.0,0.00054794,120]
[330023296,1718946640225,-500.0,0.00054794,120]
[330023298,1718946640236,-500.0,0.00054794,120]
[330023300,1718946640247,-8810.58,0.00054794,120]
[330023302,1718946640256,-500.0,0.00054794,120]
[330023303,1718946640267,-803.86,0.00054794,120]
[330023305,1718946640277,-500.82084915,0.00054794,120]
[330023306,1718946640287,-500.0,0.00054794,120]
[330023307,1718946640297,-500.0,0.00054794,120]
[330023308,1718946640306,-500.0,0.00054794,120]
[330023310,1718946640316,-500.0,0.00054794,120]
[330023311,1718946640326,-500.0,0.00054794,120]
[330023313,1718946640336,-500.0,0.00054794,120]
[330023315,1718946640356,-689.62,0.00054794,120]
[330023316,1718946640366,-500.0,0.00054794,120]
[330023318,1718946640376,-500.0,0.00054794,120]
[330023320,1718946640386,-24089.66,0.00054794,120]
[330023321,1718946640397,-500.0,0.00054794,120]
[330023323,1718946640406,-2543.17,0.00054794,120]
[330023325,1718946640416,-500.0,0.00054794,120]
[330023327,1718946640425,-500.0,0.00054794,120]
[330023328,1718946640435,-660.88,0.00054794,120]
[330023329,1718946640445,-2707.38,0.00054794,120]
[330023330,1718946640455,-758.94,0.00054794,120]
[330023331,1718946640464,-705.18,0.00054794,120]
[330023332,1718946640474,-500.0,0.00054794,120]
[330023333,1718946640484,-500.0,0.00054794,120]
[330023334,1718946640497,-500.0,0.00054794,120]
[330023335,1718946640507,-500.0,0.00054794,120]
[330023336,1718946640517,-1126.37,0.00054794,120]
[330023337,1718946640526,-1265.61,0.00054794,120]
[330023338,1718946640537,-7428.09,0.00054794,120]
[330023339,1718946640546,-538.39,0.00054794,120]
[330023340,1718946640555,-511.82330992,0.00054794,120]
[330023341,1718946640567,-500.0,0.00054794,120]
[330023342,1718946640579,-500.0,0.00054794,120]
[330023343,1718946640589,-1157.29,0.00054794,120]
[330023344,1718946640608,-500.0,0.00054794,120]
[330023345,1718946640618,-500.0,0.00054794,120]
[330023346,1718946640628,-500.0,0.00054794,120]
[330023347,1718946640638,-500.0,0.00054794,120]
[330023348,1718946640647,-500.0,0.00054794,120]
[330023349,1718946640657,-1524.13,0.00054794,120]
[330023350,1718946640666,-500.0,0.00054794,120]
[330023351,1718946640675,-1944.54,0.00054794,120]
[330023352,1718946640685,-524.62518402,0.00054794,120]
[330023353,1718946640695,-539.47,0.00054794,120]
[330023354,1718946640704,-500.0,0.00054794,120]
[330023355,1718946640714,-500.0,0.00054794,120]
[330023356,1718946640724,-500.0,0.00054794,120]
[330023357,1718946640734,-515.97,0.00054794,120]
[330023358,1718946640743,-509.92354477,0.00054794,120]
[330023359,1718946640753,-647.8,0.00054794,120]
[330023360,1718946640763,-500.0,0.00054794,120]
[330023361,1718946640773,-500.0,0.00054794,120]
[330023362,1718946640783,-500.0,0.00054794,120]
[330023363,1718946640792,-589.54,0.00054794,120]
[330023364,1718946640802,-500.0,0.00054794,120]
[330023365,1718946640812,-500.0,0.00054794,120]
[330023366,1718946640822,-500.0,0.00054794,120]
[330023367,1718946640832,-500.0,0.00054794,120]
[330023368,1718946640847,-500.0,0.00054794,120]
[330023369,1718946640859,-500.0,0.00054794,120]
[330023370,1718946640869,-500.0,0.00054794,120]
[330023371,1718946640879,-500.0,0.00054794,120]
[330023372,1718946640890,-500.0,0.00054794,120]
[330023373,1718946640900,-500.0,0.00054794,120]
[330023374,1718946640910,-500.0,0.00054794,120]
[330023375,1718946640920,-826.75,0.00054794,120]
[330023376,1718946640930,-698.18,0.00054794,120]
[330023377,1718946640940,-1828.68,0.00054794,120]
[330023378,1718946640950,-500.0,0.00054794,120]
[330023379,1718946640960,-3000.0,0.00054794,120]
[330023380,1718946640970,-500.0,0.00054794,120]
[330023381,1718946640979,-3912.38,0.00054794,120]
[330023382,1718946640989,-572.87,0.00054794,120]
[330023383,1718946640999,-926.45,0.00054794,120]
[330023384,1718946641009,-500.0,0.00054794,120]
[330023385,1718946641019,-500.0,0.00054794,60]
[330023386,1718946641029,-500.0,0.00054794,120]
[330023387,1718946641038,-500.0,0.00054794,120]
[330023388,1718946641048,-500.0,0.00054794,120]
[330023389,1718946641057,-2038.3,0.00054794,120]
[330023390,1718946641068,-1861.34,0.00054794,120]
[330023391,1718946641078,-628.47,0.00054794,120]
[330023392,1718946641088,-502.21333375,0.00054794,120]
[330023393,1718946641102,-250.0,0.00054794,120]
[330023394,1718946641111,-5074.52,0.00054794,120]
[330023395,1718946641121,-2498.98,0.00054794,120]
[330023396,1718946641131,-5074.52,0.00054794,120]
[330023397,1718946641140,-2498.98,0.00054794,120]
[330023398,1718946641150,-5074.52,0.00054794,120]
[330023399,1718946641159,-2498.98,0.00054794,120]
[330023400,1718946641168,-5074.52,0.00054794,120]
[330023401,1718946641178,-2498.98,0.00054794,120]
[330023402,1718946641187,-5074.52,0.00054794,120]
[330023403,1718946641197,-2498.98,0.00054794,120]
[330023404,1718946641206,-1286.01,0.00054794,120]
[330023405,1718946641217,-5074.52,0.00054794,120]
[330023406,1718946641226,-2498.98,0.00054794,120]
[330023407,1718946641236,-2498.98,0.00054794,120]
[330023408,1718946641245,-5074.52,0.00054794,120]
[330023409,1718946641255,-2498.98,0.00054794,120]
[330023410,1718946641266,-2498.98,0.00054794,120]
[330023411,1718946641276,-5074.52,0.00054794,120]
[330023412,1718946641286,-2498.98,0.00054794,120]
[330023413,1718946641295,-2498.98,0.00054794,120]
[330023414,1718946641304,-500.0,0.00054794,120]
[330023415,1718946641313,-500.0,0.00054794,2]
[330023416,1718946641322,-510.94581015,0.00054794,120]
[330023417,1718946641332,-500.0,0.00054798,120]
[330023418,1718946641347,-5074.52,0.00054798,120]
[330023419,1718946641357,-526.61,0.00054799,120]
[330023420,1718946641366,-526.61,0.00054799,120]
[330023421,1718946641376,-10000.0,0.000548,120]
[330023422,1718946641385,-600.0,0.000548,120]
[330023423,1718946641394,-10000.0,0.000548,14]
[330023424,1718946641403,-600.0,0.00054846,120]
[330023425,1718946641413,-10000.0,0.0005485,120]
[330023426,1718946641422,-500.0,0.00054872,120]
[330023427,1718946641431,-2498.98,0.00054872,120]
[330023428,1718946641441,-526.61,0.00054874,120]
[330023429,1718946641450,-526.61,0.00054874,120]
[330023430,1718946641460,-500.0,0.00054874,120]
[330023431,1718946641469,-5074.52,0.00054874,120]
[330023432,1718946641478,-526.61,0.00054875,120]
[330023433,1718946641488,-526.61,0.00054875,120]
[330023434,1718946641502,-526.61,0.00054875,120]
[330023435,1718946641515,-526.61,0.00054875,120]
[330023436,1718946641524,-526.61,0.00054875,120]
[330023437,1718946641535,-526.61,0.00054875,120]
[330023438,1718946641545,-526.62651449,0.00054875,120]
[330023439,1718946641554,-500.0,0.00054875,120]
[330023440,1718946641564,-500.0,0.00054875,120]
[330023441,1718946641573,-500.0,0.00054875,120]
[330023442,1718946641585,-500.0,0.00054875,120]
[330023443,1718946641600,-500.0,0.00054875,120]
[330023444,1718946641611,-494.86929351,0.00054875,120]
[330023445,1718946641621,-5074.52,0.00054875,120]
[330023446,1718946641630,-2498.98,0.00054875,120]
[330023447,1718946641639,-5074.52,0.00054875,120]
[330023448,1718946641648,-2498.98,0.00054875,120]
[330023449,1718946641658,-5074.52,0.00054875,120]
[330023450,1718946641667,-2498.98,0.00054875,120]
[330023451,1718946641676,-5074.52,0.00054875,120]
[330023452,1718946641686,-2498.98,0.00054875,120]
[330023453,1718946641696,-5074.52,0.00054875,120]
[330023454,1718946641706,-5074.52,0.00054875,120]
[330023455,1718946641715,-2498.98,0.00054875,120]
[330023456,1718946641724,-2498.98,0.00054875,120]
[330023457,1718946641733,-503.16376079,0.00054876,120]
[330023458,1718946641743,-502.44159287,0.00054876,120]
[330023459,1718946641753,-500.0,0.00054876,120]
[330023460,1718946641763,-500.0,0.00054876,120]
[330023461,1718946641773,-1551.88,0.00054876,120]
[330023462,1718946641783,-500.0,0.00054876,120]
[330023463,1718946641793,-500.0,0.00054876,120]
[330023464,1718946641802,-500.0,0.00054876,120]
[330023465,1718946641811,-500.0,0.00054876,120]
[330023466,1718946641820,-433.06107978,0.00054876,120]
[330023467,1718946641830,-646.85467751,0.00054876,120]
[330023468,1718946641839,-500.0,0.00054876,120]
[330023469,1718946641851,-2619.8,0.00054876,120]
[330023470,1718946641861,-500.0,0.00054876,120]
[330023471,1718946641871,-615.56,0.00054876,120]
[330023472,1718946641880,-500.0,0.00054876,120]
[330023473,1718946641890,-500.0,0.00054876,30]
[330023474,1718946641899,-503.65953819,0.00054876,120]
[330023475,1718946641909,-500.0,0.00054876,120]
[330023476,1718946641918,-500.0,0.00054876,120]
[330023477,1718946642003,-1267.61,0.00054876,120]
[330023478,1718946642014,-611.67,0.00054876,120]
[330023479,1718946642024,-500.0,0.00054876,120]
[330023480,1718946642033,-500.0,0.00054876,120]
[330023481,1718946642043,-500.0,0.00054876,120]
[330023482,1718946642053,-500.0,0.00054876,120]
[330023483,1718946642062,-902.15,0.00054876,120]
[330023484,1718946642072,-500.0,0.00054876,120]
[330023485,1718946642081,-588.01,0.00054876,120]
[330023486,1718946642090,-391.48332122,0.00054876,120]
[330023487,1718946642102,-500.0,0.00054876,120]
[330023488,1718946642111,-500.0,0.00054876,120]
[330023489,1718946642121,-500.0,0.00054876,120]
[330023490,1718946642130,-500.0,0.00054876,120]
[330023491,1718946642139,-500.0,0.00054876,120]
[330023492,1718946642148,-617.55,0.00054876,120]
[330023493,1718946642157,-500.0,0.00054876,120]
[330023494,1718946642167,-1097.3,0.00054876,120]
[330023495,1718946642176,-500.0,0.00054876,120]
[330023496,1718946642185,-599.19,0.00054876,120]
[330023497,1718946642194,-500.0,0.00054876,120]
[330023498,1718946642203,-640.92,0.00054876,120]
[330023499,1718946642213,-1197.05,0.00054876,120]
[330023500,1718946642223,-500.0,0.00054876,120]
[330023501,1718946642233,-670.75,0.00054876,120]
[330023502,1718946642242,-500.0,0.00054876,120]
[330023503,1718946642251,-503.47601432,0.00054876,120]
[330023504,1718946642261,-221.642433,0.00054876,120]
[330023505,1718946642272,-500.0,0.00054876,120]
[330023506,1718946642283,-762.89,0.00054876,120]
[330023507,1718946642293,-221.642433,0.00054876,120]